bitfinex/quotes_SOLUSD_20250903
["timestamp","ask_amount","ask_price","bid_price","bid_amount"]
[1756928995038,28.991293,210.2,210.19,0.72]
[1756928995545,30.67370945,210.2,210.19,0.72]
[1756928996847,30.67370945,210.2,210.19,0.03]
[1756928998122,31.29370945,210.2,210.19,0.03]
[1756928999350,36.33540651,210.2,210.19,0.03]
[1756928999727,38.24275696,210.2,210.19,0.03]
[1756929000232,1.90735046,210.2,210.19,0.72]
[1756929000429,1e-08,210.2,210.19,18.98930345]
[1756929000654,0.06,210.23,210.2,13.59559401]
[1756929000965,0.06,210.23,210.22,18.26930345]
[1756929001131,0.06,210.23,210.22,23.02622477]
[1756929001326,0.06,210.23,210.22,23.71622477]
[1756929002353,0.06,210.23,210.22,19.04251533]
[1756929003843,0.06,210.23,210.22,14.28559401]
[1756929004357,0.06,210.23,210.22,19.04251533]
[1756929005641,0.06,210.23,210.22,23.71622477]
[1756929008256,0.06,210.23,210.22,19.04251533]
[1756929008751,0.06,210.25,210.24,26.0]
[1756929008928,0.06,210.25,210.24,44.26930345]
[1756929009128,1e-08,210.25,210.24,54.38948168]
[1756929009330,1e-08,210.25,210.24,59.34751426]
[1756929010146,1e-08,210.25,210.24,50.28654849]
[1756929010340,1e-08,210.25,210.24,54.38948168]
[1756929010546,1e-08,210.25,210.24,91.18948168]
[1756929014339,1e-08,210.25,210.24,54.38948168]
[1756929014632,1e-08,210.25,210.24,91.18948168]
[1756929015239,1e-08,210.25,210.24,95.86319112]
[1756929015936,1e-08,210.25,210.24,96.14751426]
[1756929016133,1e-08,210.28,210.27,39.59559401]
[1756929016331,0.06,210.35,210.28,13.59559401]
[1756929016550,0.06,210.35,210.34,13.59559401]
[1756929016841,0.06,210.35,210.34,50.37559401]
[1756929017041,0.06,210.35,210.34,55.12980148]
[1756929017941,0.06,210.35,210.34,60.47351092]
[1756929020661,0.06,210.35,210.34,55.79980148]
[1756929020855,0.06,210.35,210.34,18.34980148]
[1756929021061,0.06,210.35,210.34,55.12980148]
[1756929021638,0.68,210.35,210.32,13.59559401]
[1756929021843,0.68,210.35,210.34,13.59559401]
[1756929022766,0.06,210.35,210.34,13.59559401]
[1756929023063,0.06,210.35,210.34,18.34980148]
[1756929024053,4.73370944,210.35,210.34,18.34980148]
[1756929025458,4.73370944,210.35,210.34,13.59559401]
[1756929026160,0.06,210.35,210.34,13.59559401]
[1756929026367,4.73370944,210.35,210.34,13.59559401]
[1756929027665,4.73370944,210.35,210.34,18.34980148]
[1756929027860,4.73370944,210.35,210.34,55.10980148]
[1756929028256,0.06,210.35,210.34,55.77980148]
[1756929029063,0.06,210.35,210.34,55.10980148]
[1756929030867,5.35370944,210.35,210.29,4.67370944]
[1756929031077,4.67370944,210.31,210.3,50.33559401]
[1756929031251,0.06,210.35,210.3,55.76070575]
[1756929031455,4.73370944,210.35,210.31,0.67]
[1756929031680,4.73370944,210.35,210.33,13.59559401]
[1756929031881,4.73370944,210.35,210.34,50.37559401]
[1756929033984,4.73370944,210.35,210.33,36.8]
[1756929034150,4.67370944,210.34,210.33,50.39559401]
[1756929034351,4.67370944,210.34,210.33,50.37559401]
[1756929035584,4.67370944,210.34,210.3,0.03]
[1756929035585,5.29370944,210.34,210.3,0.03]
[1756929035880,4.81400334,210.35,210.31,36.78]
[1756929036079,0.62,210.34,210.31,13.59559401]
[1756929036276,0.62,210.34,210.3,0.03]
[1756929036480,0.62,210.34,210.3,36.81]
[1756929036974,4.67370944,210.31,210.3,50.40559401]
[1756929038551,4.67370944,210.32,210.3,55.16065121]
[1756929038749,4.67370944,210.31,210.3,50.40559401]
[1756929038952,4.67370944,210.31,210.3,36.81]
[1756929039181,4.67370944,210.31,210.3,0.03]
[1756929039397,5.29370944,210.31,210.3,0.03]
[1756929039678,5.29370944,210.31,210.27,0.03]
[1756929039679,26.0,210.28,210.27,0.03]
[1756929039866,35.71359658,210.28,210.27,0.03]
[1756929040212,36.33359658,210.28,210.27,0.03]
[1756929041461,31.57803258,210.28,210.27,0.03]
[1756929041770,36.33359658,210.28,210.27,0.03]
[1756929044281,39.52985404,210.28,210.27,0.03]
[1756929046286,36.33359658,210.28,210.27,0.03]
[1756929046987,30.95803258,210.28,210.27,0.03]
[1756929047178,35.71359658,210.28,210.27,0.03]
[1756929049180,36.33359658,210.28,210.27,0.03]
[1756929049560,73.09359658,210.28,210.27,0.03]
[1756929049764,73.09359658,210.28,210.2,0.03]
[1756929049972,4.67370944,210.21,210.2,0.03]
[1756929050567,4.67370944,210.21,210.2,0.69]
[1756929053968,26.0,210.25,210.21,13.59559401]
[1756929054170,0.62,210.31,210.23,13.59559401]
[1756929054392,5.37491677,210.31,210.24,0.66]
[1756929054572,4.67370944,210.27,210.24,0.66]
[1756929055508,2.98869921,210.25,210.21,13.59559401]
[1756929055797,2.98869921,210.23,210.22,14.25559401]
[1756929056183,4.8972784,210.3,210.23,13.59559401]
[1756929056377,4.8972784,210.3,210.24,0.66]
[1756929056378,0.28432314,210.29,210.24,0.66]
[1756929056697,2.98869921,210.26,210.24,0.66]
[1756929056897,2.98869921,210.25,210.22,13.59559401]
[1756929057401,2.98869921,210.25,210.23,0.66]
[1756929057898,2.98869921,210.25,210.24,4.75646879]
[1756929058092,2.98869921,210.25,210.24,5.41646879]
[1756929059305,2.98869921,210.27,210.24,5.41646879]
[1756929059603,2.98869921,210.28,210.25,0.66]
[1756929060109,2.98869921,210.28,210.26,4.75601636]
[1756929060405,2.98869921,210.28,210.27,0.66]
[1756929063197,2.98869921,210.31,210.28,13.59559401]
[1756929063501,3.04869921,210.33,210.3,13.59559401]
[1756929063681,3.04869921,210.33,210.31,0.66]
[1756929063883,3.04869921,210.33,210.32,0.66]
[1756929065901,3.04869921,210.33,210.31,4.75480395]
[1756929066102,3.04869921,210.33,210.31,5.41480395]
[1756929066488,3.04869921,210.33,210.32,0.66]
[1756929067498,3.04869921,210.33,210.3,14.25559401]
[1756929067702,0.06,210.33,210.31,0.66]
[1756929067900,2.98869921,210.32,210.31,14.25559401]
[1756929069102,2.98869921,210.32,210.31,19.01047965]
[1756929069493,2.98869921,210.32,210.31,14.25559401]
[1756929070507,2.98869921,210.32,210.31,19.01047965]
[1756929072695,2.98869921,210.32,210.31,13.59559401]
[1756929073811,2.98869921,210.32,210.31,14.27559401]
[1756929075918,0.06,210.33,210.31,19.03047965]
[1756929076116,0.06,210.33,210.32,14.27559401]
[1756929076912,0.06,210.33,210.32,19.03025357]
[1756929077490,0.06,210.33,210.32,22.01895278]
[1756929077691,0.06,210.33,210.32,19.03025357]
[1756929077907,0.06,210.33,210.32,22.01895278]
[1756929078220,0.06,210.33,210.32,19.03025357]
[1756929078991,0.06,210.33,210.32,55.77025357]
[1756929079907,0.06,210.33,210.32,58.75895278]
[1756929081508,0.06,210.33,210.32,22.01895278]
[1756929081699,0.06,210.33,210.32,19.03025357]
[1756929081895,0.06,210.33,210.32,55.77025357]
[1756929082600,1e-08,210.33,210.32,55.77025357]
[1756929082927,1e-08,210.33,210.32,58.75895278]
[1756929084115,1e-08,210.35,210.32,58.75895278]
[1756929084315,1e-08,210.36,210.35,13.59559401]
[1756929084518,1e-08,210.36,210.35,53.60861636]
[1756929084707,1e-08,210.36,210.35,54.28861636]
[1756929086199,1e-08,210.36,210.35,59.04259781]
[1756929087917,1e-08,210.36,210.35,59.61307558]
[1756929088623,1e-08,210.36,210.35,138.21307558]
[1756929088824,1e-08,210.36,210.35,100.90259781]
[1756929089005,1e-08,210.36,210.35,137.64259781]
[1756929089211,1e-08,210.39,210.38,39.59559401]
[1756929089427,1e-08,210.39,210.38,79.98429322]
[1756929089916,1e-08,210.39,210.38,84.73759676]
[1756929090514,0.62,210.47,210.39,13.59559401]
[1756929090704,3.60869921,210.47,210.41,16.58429322]
[1756929091227,26.0,210.5,210.41,17.26429322]
[1756929091228,0.62,210.5,210.41,17.26429322]
[1756929091520,131.5,210.57,210.45,13.59559401]
[1756929091521,2.98869921,210.51,210.45,13.59559401]
[1756929091729,2.98869921,210.5,210.47,13.59559401]
[1756929092026,2.98869921,210.5,210.49,4.75081951]
[1756929092530,0.62,210.51,210.5,13.59559401]
[1756929092729,0.62,210.51,210.5,50.33559401]
[1756929092916,0.62,210.53,210.5,50.33559401]
[1756929093115,2.98869921,210.52,210.5,50.33559401]
[1756929093415,3.60869921,210.52,210.5,50.33559401]
[1756929093612,3.60869921,210.57,210.52,13.59559401]
[1756929093926,3.60869921,210.56,210.54,13.59559401]
[1756929094101,2.98869921,210.55,210.54,50.35559401]
[1756929094304,3.60869921,210.55,210.54,50.35559401]
[1756929094529,3.60869921,210.55,210.54,18.34528528]
[1756929094738,0.62,210.55,210.54,55.10528528]
[1756929094907,3.60869921,210.55,210.54,55.10528528]
[1756929095108,0.62,210.55,210.54,55.10528528]
[1756929095423,3.60869921,210.55,210.54,55.10528528]
[1756929095725,0.62,210.6,210.54,55.78528528]
[1756929095924,2.98869921,210.57,210.54,18.34528528]
[1756929096126,2.98869921,210.57,210.56,18.34483413]
[1756929096317,3.60869921,210.57,210.56,18.34483413]
[1756929096625,26.0,210.63,210.56,18.34483413]
[1756929096821,2.98869921,210.57,210.56,18.34483413]
[1756929097214,3.60869921,210.57,210.56,18.34483413]
[1756929097917,2.98869921,210.57,210.56,18.34483413]
[1756929098727,2.98869921,210.57,210.54,4.74947026]
[1756929098935,2.98869921,210.56,210.55,50.39559401]
[1756929099836,2.98869921,210.56,210.55,18.34505969]
[1756929100030,2.98869921,210.56,210.55,55.12505969]
[1756929100821,2.98869921,210.56,210.55,18.34505969]
[1756929101135,2.98869921,210.56,210.55,55.12505969]
[1756929101725,2.98869921,210.56,210.55,13.59559401]
[1756929102039,2.98869921,210.56,210.55,50.35559401]
[1756929102714,0.62,210.58,210.56,13.59559401]
[1756929102920,2.98869921,210.57,210.56,13.59559401]
[1756929103834,0.62,210.58,210.56,13.59559401]
[1756929104010,2.98869921,210.57,210.56,13.59559401]
[1756929105030,0.62,210.58,210.55,13.59559401]
[1756929105335,0.62,210.58,210.56,36.76]
[1756929105530,2.98869921,210.57,210.56,13.59559401]
[1756929106632,3.04869921,210.57,210.56,13.59559401]
[1756929107325,3.66869921,210.57,210.55,36.74]
[1756929107519,2.98869921,210.56,210.55,36.74]
[1756929107836,2.98869921,210.56,210.53,13.59559401]
[1756929108228,3.60869921,210.56,210.53,13.59559401]
[1756929108422,0.62,210.56,210.53,50.31559401]
[1756929108746,2.98869921,210.55,210.53,55.72546011]
[1756929111244,0.06,210.57,210.53,55.72546011]
[1756929111545,2.98869921,210.55,210.53,55.72546011]
[1756929111941,0.06,210.57,210.53,55.72546011]
[1756929112143,2.98869921,210.54,210.53,55.06546011]
[1756929112851,2.98869921,210.54,210.53,55.72546011]
[1756929113028,2.98869921,210.55,210.53,55.72546011]
[1756929114451,2.98869921,210.55,210.54,5.40969127]
[1756929114946,2.98869921,210.55,210.54,4.74969127]
[1756929116250,0.06,210.57,210.54,4.74969127]
[1756929116429,0.68,210.57,210.55,36.68]
[1756929116630,2.98869921,210.56,210.55,36.68]
[1756929116846,3.04869921,210.57,210.55,42.08946568]
[1756929117046,3.04869921,210.57,210.56,0.66]
[1756929117353,3.04869921,210.57,210.55,41.42946568]
[1756929117544,4.71640524,210.57,210.55,42.08946568]
[1756929117749,0.06,210.57,210.55,42.08946568]
[1756929118048,4.71640524,210.57,210.55,42.08946568]
[1756929118257,0.06,210.57,210.55,42.08946568]
[1756929118551,4.71640524,210.57,210.55,42.08946568]
[1756929119052,4.71640524,210.57,210.55,41.42946568]
[1756929119356,4.71640524,210.57,210.55,42.08946568]
[1756929119551,0.06,210.57,210.55,42.08946568]
[1756929119753,4.65640524,210.56,210.55,55.68505969]
[1756929120456,0.06,210.57,210.55,55.68505969]
[1756929120630,4.65640524,210.56,210.55,55.68505969]
[1756929121034,0.06,210.57,210.55,55.68505969]
[1756929121451,0.06,210.57,210.56,14.25559401]
[1756929122062,0.06,210.57,210.56,13.59559401]
[1756929122440,4.71640524,210.57,210.56,13.59559401]
[1756929123159,0.06,210.57,210.56,18.34483413]
[1756929123337,4.71640524,210.57,210.56,19.00483413]
[1756929124371,4.71640524,210.57,210.56,18.34483413]
[1756929125869,4.71640524,210.57,210.56,55.62483413]
[1756929127847,4.71640524,210.57,210.56,36.62]
[1756929130164,0.06,210.57,210.56,42.02924012]
[1756929130463,4.71640524,210.57,210.56,42.02924012]
[1756929131467,4.71640524,210.57,210.56,37.28]
[1756929131964,4.71640524,210.57,210.55,4.74941635]
[1756929131965,10.08548606,210.57,210.55,36.6]
[1756929132169,5.27640524,210.56,210.54,36.6]
[1756929132344,0.06,210.57,210.55,0.72]
[1756929132547,0.06,210.57,210.56,50.91559401]
[1756929132751,0.06,210.57,210.56,69.84446054]
[1756929132966,0.06,210.57,210.56,69.93729542]
[1756929134469,0.06,210.57,210.56,74.59370066]
[1756929135669,0.06,210.57,210.56,69.93729542]
[1756929135874,0.06,210.57,210.56,74.59370066]
[1756929137350,0.06,210.57,210.56,69.93729542]
[1756929137558,0.06,210.57,210.56,37.99370066]
[1756929137866,0.06,210.57,210.56,75.09370066]
[1756929138450,0.06,210.57,210.56,75.38010066]
[1756929138875,0.06,210.57,210.56,70.72369542]
[1756929139061,0.06,210.57,210.56,75.38010066]
[1756929139372,0.06,210.57,210.56,33.62369542]
[1756929139672,0.06,210.57,210.56,75.38010066]
[1756929142572,0.06,210.57,210.56,70.72369542]
[1756929142754,0.06,210.57,210.56,75.38010066]
[1756929143176,0.06,210.57,210.56,69.98369542]
[1756929143472,0.06,210.57,210.56,55.71123413]
[1756929143851,0.06,210.57,210.56,18.63123413]
[1756929144054,0.06,210.57,210.56,55.71123413]
[1756929144462,0.06,210.57,210.56,56.43123413]
[1756929144659,0.06,210.57,210.56,61.76763937]
[1756929145178,0.06,210.57,210.56,56.43123413]
[1756929145561,0.06,210.57,210.56,55.69123413]
[1756929146078,0.06,210.57,210.56,56.41123413]
[1756929146584,0.06,210.57,210.56,65.72404461]
[1756929148188,0.06,210.6,210.57,13.59559401]
[1756929148357,0.06,210.6,210.59,13.59559401]
[1756929148880,0.06,210.6,210.59,14.31559401]
[1756929150857,0.06,210.6,210.59,19.06415756]
[1756929152292,0.06,210.6,210.59,23.7205628]
[1756929152960,0.06,210.6,210.59,60.8605628]
[1756929153165,0.06,210.6,210.59,60.1405628]
[1756929153664,0.06,210.6,210.59,23.0005628]
[1756929153972,0.06,210.6,210.59,55.46415756]
[1756929157876,0.06,210.6,210.59,18.34415756]
[1756929158075,0.06,210.6,210.59,55.54415756]
[1756929159493,4.71640524,210.6,210.59,55.54415756]
[1756929160092,4.71640524,210.6,210.58,4.74878643]
[1756929160293,4.65640524,210.59,210.54,19.06528528]
[1756929160477,4.65640524,210.59,210.56,13.59559401]
[1756929160786,4.65640524,210.59,210.57,37.21]
[1756929162387,4.65640524,210.59,210.58,4.74878905]
[1756929162585,5.27640524,210.59,210.57,0.03]
[1756929162797,4.65640524,210.58,210.57,0.03]
[1756929163188,5.27640524,210.58,210.57,0.03]
[1756929165187,26.62,210.58,210.57,0.03]
[1756929165496,31.27640524,210.58,210.57,0.03]
[1756929166776,30.65640524,210.58,210.57,0.03]
[1756929166984,31.27640524,210.58,210.57,0.03]
[1756929170695,36.30951743,210.58,210.57,0.03]
[1756929173492,36.30951743,210.58,210.57,0.3164]
[1756929175998,68.02072838,210.58,210.57,0.3164]
[1756929176189,68.64072838,210.58,210.57,0.3164]
[1756929177506,71.71454495,210.58,210.57,0.3164]
[1756929178497,29.2657559,210.58,210.57,0.3164]
[1756929178683,3.8857559,210.58,210.57,0.3164]
[1756929179101,0.28432314,210.58,210.57,0.3164]
[1756929179403,29.2657559,210.58,210.57,0.3164]
[1756929179602,29.2657559,210.58,210.57,0.9964]
[1756929180203,29.3257559,210.58,210.57,0.3164]
[1756929180385,71.75454495,210.58,210.57,0.3164]
[1756929182109,64.02432314,210.58,210.57,0.3164]
[1756929182307,71.75454495,210.58,210.57,0.3164]
[1756929185211,71.75454495,210.58,210.54,0.03]
[1756929185391,2.98143276,210.55,210.54,0.03]
[1756929185587,40.00143276,210.55,210.54,0.03]
[1756929186515,65.98143276,210.55,210.54,0.71]
[1756929186812,70.73089844,210.55,210.54,0.03]
[1756929190711,33.73089844,210.55,210.54,0.71]
[1756929191601,34.35089844,210.55,210.54,0.03]
[1756929191799,26.14216157,210.53,210.52,0.03]
[1756929192007,66.2257559,210.53,210.52,0.03]
[1756929192207,0.28432314,210.52,210.46,0.71]
[1756929192411,2.98143276,210.47,210.46,0.71]
[1756929194015,0.28432314,210.49,210.46,5.46148949]
[1756929194218,2.98143276,210.48,210.46,4.75148949]
[1756929194712,2.98143276,210.48,210.47,0.71]
[1756929195717,0.06,210.6,210.48,13.87991715]
[1756929195918,2.98143276,210.69,210.6,13.59559401]
[1756929196101,2.98143276,210.7,210.64,16.57702677]
[1756929196306,2.98143276,210.7,210.65,0.71]
[1756929196504,2.98143276,210.7,210.66,0.71]
[1756929196713,2.98143276,210.7,210.66,14.30559401]
[1756929196912,2.98143276,210.72,210.67,0.71]
[1756929197207,2.98143276,210.72,210.68,0.71]
[1756929197399,2.98143276,210.72,210.69,0.71]
[1756929198108,2.98143276,210.71,210.69,0.71]
[1756929198310,2.98143276,210.7,210.64,0.71]
[1756929198500,2.98143276,210.67,210.64,0.71]
[1756929199118,0.28432314,210.71,210.65,0.71]
[1756929199295,2.98143276,210.67,210.65,0.71]
[1756929199692,4.74634738,210.69,210.65,0.71]
[1756929199914,2.98143276,210.67,210.65,0.71]
[1756929200296,2.98143276,210.67,210.63,14.27042455]
[1756929200516,2.98143276,210.64,210.61,13.59559401]
[1756929200697,2.98143276,210.64,210.62,0.71]
[1756929201013,2.98143276,210.64,210.63,0.71]
[1756929201512,2.98143276,210.64,210.61,0.71]
[1756929201698,2.98143276,210.65,210.62,0.71]
[1756929204234,7.72867577,210.65,210.62,0.71]
[1756929204520,2.98143276,210.63,210.58,0.71]
[1756929204704,2.98143276,210.63,210.59,14.30559401]
[1756929205017,2.98143276,210.64,210.61,13.59559401]
[1756929205334,2.98143276,210.64,210.61,14.30559401]
[1756929206521,2.98143276,210.63,210.61,14.30559401]
[1756929207622,2.98143276,210.63,210.62,0.71]
[1756929207827,2.98143276,210.63,210.58,13.59559401]
[1756929207828,0.28432314,210.62,210.58,13.59559401]
[1756929208117,2.98143276,210.59,210.58,13.59559401]
[1756929208314,2.98143276,210.59,210.57,0.74]
[1756929209322,2.98143276,210.59,210.57,0.03]
[1756929209529,0.28432314,210.62,210.58,0.71]
[1756929209708,4.74811262,210.61,210.57,0.03]
[1756929209915,0.90432314,210.6,210.57,0.03]
[1756929210111,0.28432314,210.6,210.57,0.03]
[1756929210625,2.98143276,210.58,210.57,0.03]
[1756929211008,7.73022181,210.58,210.57,0.03]
[1756929211323,26.0,210.55,210.54,0.03]
[1756929211512,29.2657559,210.55,210.54,0.03]
[1756929212602,29.8857559,210.55,210.54,0.03]
[1756929213016,34.63522158,210.55,210.54,0.03]
[1756929214811,72.17522158,210.55,210.54,0.03]
[1756929218233,72.17522158,210.55,210.52,0.03]
[1756929218433,3.2657559,210.53,210.52,0.03]
[1756929218832,3.8857559,210.53,210.52,0.03]
[1756929219031,3.8857559,210.53,210.51,0.03]
[1756929219335,41.08143276,210.52,210.51,0.03]
[1756929220715,26.0,210.5,210.43,0.71]
[1756929220920,2.98143276,210.44,210.43,0.71]
[1756929222820,7.73338105,210.44,210.43,0.71]
[1756929223133,7.73338105,210.44,210.42,0.03]
[1756929223439,26.0,210.44,210.43,0.72]
[1756929223624,28.98143276,210.44,210.43,0.72]
[1756929224222,0.28432314,210.48,210.43,0.72]
[1756929224440,2.98143276,210.45,210.43,0.72]
[1756929224637,2.98143276,210.44,210.43,0.72]
[1756929230537,2.98143276,210.44,210.42,0.03]
[1756929230842,2.98143276,210.43,210.42,0.03]
[1756929231225,2.98143276,210.43,210.42,0.75]
[1756929234029,30.751588,210.46,210.42,0.75]
[1756929234326,2.98143276,210.43,210.42,0.03]
[1756929234845,2.98143276,210.43,210.42,0.75]
[1756929235230,26.0,210.46,210.43,13.59559401]
[1756929235546,2.98143276,210.46,210.44,0.72]
[1756929235735,26.0,210.47,210.43,13.59559401]
[1756929235736,2.98143276,210.45,210.43,13.59559401]
[1756929235936,2.98143276,210.45,210.44,0.72]
[1756929237446,4.66172991,210.45,210.44,0.72]
[1756929238948,26.0,210.48,210.44,0.72]
[1756929239142,4.66172991,210.45,210.44,0.72]
[1756929239457,4.66172991,210.45,210.43,18.34774634]
[1756929239750,4.66172991,210.47,210.43,18.34774634]
[1756929239948,4.66172991,210.47,210.44,0.72]
[1756929240330,4.66172991,210.48,210.45,13.59559401]
[1756929240540,4.66172991,210.48,210.46,0.72]
[1756929240941,4.72172991,210.49,210.46,0.72]
[1756929241344,4.72172991,210.49,210.43,4.75217411]
[1756929241345,4.66172991,210.47,210.43,4.75217411]
[1756929241548,4.66172991,210.44,210.42,0.03]
[1756929241728,4.66172991,210.43,210.42,0.75]
[1756929244349,4.66172991,210.47,210.43,13.59559401]
[1756929244657,0.06,210.49,210.45,13.59559401]
[1756929244840,0.06,210.49,210.47,13.59559401]
[1756929245356,0.06,210.49,210.48,19.06663923]
[1756929246733,0.06,210.49,210.48,23.72836914]
[1756929246947,0.06,210.49,210.48,28.45009905]
[1756929247249,0.06,210.52,210.49,13.59559401]
[1756929247451,0.06,210.52,210.51,18.25732392]
[1756929247956,0.06,210.52,210.51,18.97732392]
[1756929248631,0.06,210.52,210.51,23.72769207]
[1756929250152,0.06,210.52,210.51,19.06596216]
[1756929250378,0.06,210.52,210.51,18.34596216]
[1756929250555,0.06,210.52,210.51,19.06596216]
[1756929254562,4.72172991,210.52,210.51,13.59559401]
[1756929254945,0.06,210.52,210.51,23.72769207]
[1756929255142,0.06,210.52,210.51,19.06596216]
[1756929256357,0.06,210.52,210.51,23.72769207]
[1756929258865,0.06,210.52,210.51,19.06596216]
[1756929259164,0.06,210.52,210.51,23.72769207]
[1756929259349,0.06,210.52,210.51,13.59559401]
[1756929259755,0.06,210.52,210.51,18.34596216]
[1756929259956,0.06,210.52,210.51,23.72769207]
[1756929260961,0.06,210.52,210.51,18.34596216]
[1756929261158,0.06,210.52,210.51,19.06596216]
[1756929264665,0.06,210.52,210.51,18.34596216]
[1756929265074,0.06,210.52,210.51,19.06596216]
[1756929273980,0.06,210.52,210.51,23.72769207]
[1756929274187,0.06,210.52,210.51,56.26596216]
[1756929274482,0.06,210.52,210.51,60.92769207]
[1756929280264,0.06,210.54,210.52,13.59559401]
[1756929280466,1e-08,210.54,210.53,55.39732392]
[1756929280664,1e-08,210.54,210.53,56.20551088]
[1756929280865,1e-08,210.54,210.53,60.86724079]
[1756929281086,1e-08,210.54,210.53,62.77032616]
[1756929282980,1e-08,210.54,210.53,58.10859625]
[1756929283172,1e-08,210.54,210.53,62.77032616]
[1756929283597,1e-08,210.55,210.54,13.59559401]
[1756929283896,1e-08,210.55,210.54,18.91732392]
[1756929284685,1e-08,210.55,210.54,23.66701519]
[1756929284882,1e-08,210.55,210.54,25.57001003]
[1756929286385,1e-08,210.55,210.54,20.90828012]
[1756929286575,1e-08,210.55,210.54,25.57001003]
[1756929288584,1e-08,210.55,210.54,20.90828012]
[1756929288789,1e-08,210.55,210.54,58.00828012]
[1756929289395,1e-08,210.55,210.54,20.90828012]
[1756929289596,1e-08,210.55,210.54,57.34828012]
[1756929289899,1e-08,210.55,210.54,50.72559401]
[1756929290092,1e-08,210.55,210.54,55.47528528]
[1756929290295,1e-08,210.55,210.54,56.13528528]
[1756929290497,1e-08,210.55,210.54,18.37528528]
[1756929290803,5.28172992,210.55,210.54,13.62559401]
[1756929291189,5.28172992,210.55,210.54,0.03]
[1756929292074,0.62000001,210.55,210.54,0.03]
[1756929292273,5.28172992,210.55,210.54,0.03]
[1756929294373,4.66172992,210.55,210.54,0.03]
[1756929294984,1e-08,210.55,210.54,0.03]
[1756929295195,1e-08,210.55,210.54,50.70559401]
[1756929295998,1e-08,210.55,210.54,55.45528528]
[1756929296388,1e-08,210.55,210.54,56.11528528]
[1756929297995,1e-08,210.55,210.54,55.45528528]
[1756929298395,4.66172992,210.55,210.54,55.45528528]
[1756929299478,2.98063399,210.55,210.54,55.45528528]
[1756929299681,1e-08,210.55,210.54,55.45528528]
[1756929300080,1e-08,210.55,210.54,18.37528528]
[1756929300282,1e-08,210.55,210.54,19.03528528]
[1756929300479,1e-08,210.55,210.54,22.01591926]
[1756929300694,1e-08,210.55,210.54,19.03528528]
[1756929301005,1e-08,210.55,210.54,18.37528528]
[1756929301186,2.98063399,210.55,210.54,50.72559401]
[1756929301386,1e-08,210.55,210.54,55.47528528]
[1756929301595,1e-08,210.55,210.54,56.13528528]
[1756929302093,1e-08,210.55,210.54,59.11591926]
[1756929303103,1e-08,210.55,210.54,62.09655324]
[1756929303811,1e-08,210.58,210.55,13.59559401]
[1756929304008,1e-08,210.58,210.57,16.57622799]
[1756929304211,0.62,210.68,210.57,33.48210214]
[1756929304389,2.98063398,210.66,210.61,13.59559401]
[1756929304589,2.98063398,210.65,210.61,13.59559401]
[1756929304800,2.98063398,210.65,210.61,51.37559401]
[1756929304988,2.98063398,210.66,210.61,51.37559401]
[1756929305189,0.62,210.67,210.61,51.37559401]
[1756929305390,2.98063398,210.65,210.61,51.37559401]
[1756929305602,2.98063398,210.65,210.61,14.25559401]
[1756929305906,2.98063398,210.65,210.61,51.37559401]
[1756929306286,2.98063398,210.65,210.61,55.46370663]
[1756929306680,2.98063398,210.65,210.61,58.44434061]
[1756929307001,2.98063398,210.65,210.61,21.32434061]
[1756929307194,2.98063398,210.65,210.61,59.10434061]
[1756929308387,0.62,210.67,210.61,59.10434061]
[1756929308588,2.98063398,210.65,210.61,21.32434061]
[1756929308889,2.98063398,210.65,210.61,58.42434061]
[1756929309596,2.98063398,210.65,210.61,59.08434061]
[1756929309794,2.98063398,210.65,210.61,58.42434061]
[1756929310003,2.98063398,210.65,210.61,59.08434061]
[1756929310197,2.98063398,210.63,210.61,16.57622799]
[1756929310430,2.98063398,210.63,210.61,50.67559401]
[1756929310596,3.66063398,210.62,210.59,4.74706432]
[1756929310792,2.98063398,210.6,210.56,13.59559401]
[1756929310990,3.60063398,210.6,210.56,4.74921329]
[1756929311193,0.62,210.59,210.58,13.59559401]
[1756929311500,3.60063398,210.59,210.58,13.59559401]
[1756929312026,3.60063398,210.59,210.57,37.1]